Cogmind - Beta 10.2 @@@ ROGUE MODE // 2021.11.27 @ 14:18:17 Player: BigP Result: Self-destructed Performance ------------- Evolutions (1) 500 Regions Visited (2) 400 Robots Destroyed (6) 30 Value Destroyed (85) 85 Prototype IDs (2) 40 Alien Tech Used (0) 0 Bonus (0) 0 TOTAL SCORE: 1055 Bonus ------- None Cogmind --------- Core Integrity 390/400 Matter 160/300 Energy 94/265 System Corruption 0% Temperature Cool (4) Movement Flying (31) Location -9/Materials Parts ------- > --- POWER (1) -------- Improved Ion Engine > --- PROPULSION (4) --- VTOL Module VTOL Module VTOL Module VTOL Module > --- UTILITY (2) ------ Improved Targeting Computer Shield Generator > --- WEAPON (2) ------- (None) > --- INVENTORY (4) ---- Ion Engine Improved Targeting Computer Improved Targeting Computer Peak State ------------ > --- POWER ------------ Ion Engine > --- PROPULSION ------- VTOL Module VTOL Module VTOL Module VTOL Module > --- UTILITY ---------- Improved Targeting Computer Improved Targeting Computer > --- WEAPON ----------- Medium Laser Particle Gun > --- INVENTORY -------- Improved Targeting Computer Improved Targeting Computer [Rating: 16] Favorites ----------- Power Ion Engine Engine Ion Engine Propulsion Light Treads Treads Light Treads Flight Unit VTOL Module Utility Targeting Computer Device Shield Generator Storage Small Storage Unit Processor Targeting Computer Weapon Medium Laser Energy Gun Medium Laser Build | -11 -10 -9 ------- Run | Scr Mat Mat Slots Evolved 2 | . . 2 Power . | . . . Propulsion 2 | . . 2 Utility . | . . . Weapon . | . . . Parts Attached 23 | 6 10 7 Power 3 | 1 1 1 Engine 3 | 1 1 1 Core . | . . . Reactor . | . . . Propulsion 9 | 2 2 5 Treads 2 | 2 . . Leg . | . . . Wheel . | . . . Hover . | . . . Flight 7 | . 2 5 Utility 6 | 1 4 1 Device 1 | . . 1 Storage 1 | 1 . . Processor 4 | . 4 . Hackware . | . . . Protection . | . . . Artifact . | . . . Weapon 5 | 2 3 . Energy Gun 5 | 2 3 . Energy Cannon . | . . . Ballistic Gun . | . . . Ballistic Cannon . | . . . Launcher . | . . . Special Weapon . | . . . Impact Weapon . | . . . Slashing Weapon . | . . . Piercing Weapon . | . . . Special Melee Weapon . | . . . Unidentified Prototypes . | . . . Parts Lost . | . . . Power . | . . . Propulsion . | . . . Utility . | . . . Weapon . | . . . Highest Loss Streak . | . . . Average Slot Usage (%) 94 | . 96 91 Engine 13 | . 14 11 Treads 16 | . 24 . Flight 15 | . 2 43 Device 2 | . . 9 Storage 4 | . 6 . Processor 17 | . 19 12 Energy Gun 23 | . 27 14 Naked Turns . | . . . Heaviest Build 12 | 11 11 12 Greatest Support 40 | 40 40 20 Greatest Overweight (x) 2 | . 2 . Average Overweight (x) . | . . . Largest Inventory Capacity 6 | 6 6 4 Average Capacity 4 | 5 4 4 Most Carried 4 | 4 4 4 Average Carried 2 | . 2 2 Final Capacity 6 | 6 4 4 Final Carried 4 | . 4 3 Class Distribution -------------------- 100% | Mutant Dominant Class ---------------- Mutant | -10/Materials Mutant | -9/Materials Resources | -11 -10 -9 ----------- Run | Scr Mat Mat Matter Collected 290 | 216 74 . Remotely . | . . . Salvage Created 144 | . 144 . Parts 11 | . 11 . Haulers Intercepted . | . . . Recyclers Shooed 1 | . 1 . Parts Field Recycled . | . . . Retrieved Matter . | . . . Parts Self-Destructed . | . . . Prevented . | . . . Kills | -11 -10 -9 ------- Run | Scr Mat Mat Combat Hostiles Destroyed 4 | . 4 . Guns 4 | . 4 . Classes Destroyed 4 | . 4 . Builder 1 | . 1 . Watcher 1 | . 1 . Swarmer 3 | . 3 . Grunt 1 | . 1 . Best Kill Streak 3 | . 3 . Combat Bots Only 2 | . 2 . Max Kills in Single Turn 1 | . 1 . Gunslinging . | . . . Exploded . | . . . Melee . | . . . Uniques/NPCs Destroyed . | . . . Combat | -11 -10 -9 -------- Run | Scr Mat Mat Damage Taken 198 | . 143 55 Core 45 | . 35 10 Absorbed by Shields 22 | . . 22 Core Remaining (%) 93 | 100 86 . Volleys Fired 20 | . 20 . Largest 2 | . 2 . Hottest 130 | . 130 . Shots Fired 40 | . 40 . Gun 40 | . 40 . Cannon . | . . . Launcher . | . . . Special . | . . . Kinetic . | . . . Thermal 21 | . 21 . Explosive . | . . . Electromagnetic 19 | . 19 . Robot Hit Streak 6 | . 6 . Robot Miss Streak 5 | . 5 . Penetration Max . | . . . Secondary Targets . | . . . Shots Hit Robots 25 | . 25 . Core Hits 7 | . 7 . Critical Hits . | . . . Critical Kills . | . . . Critical Parts Destroyed . | . . . Melee Attacks . | . . . Impact . | . . . Slashing . | . . . Piercing . | . . . Sneak Attacks . | . . . Combat Hostiles . | . . . Follow-up Attacks . | . . . Damage Inflicted 357 | . 357 . Guns 357 | . 357 . Cannons . | . . . Explosions . | . . . Melee . | . . . Ramming . | . . . Kinetic . | . . . Thermal 168 | . 168 . Explosive . | . . . Electromagnetic 189 | . 189 . Impact . | . . . Slashing . | . . . Piercing . | . . . Highest Corruption . | . . . Average Corruption . | . . . Corruption Purged . | . . . Overload Shots . | . . . Overflow Damage . | . . . Projectiles . | . . . Explosions . | . . . Melee . | . . . Knockbacks . | . . . Impact . | . . . Kinetic . | . . . Secondary . | . . . Self-Inflicted Damage . | . . . Shots . | . . . Rammed . | . . . Targets Rammed . | . . . Kicked . | . . . Crushed . | . . . Highest Temperature 202 | . 202 4 Average Temperature 67 | . 68 4 Received Heat Transfer 54 | . 48 6 Siege Activations . | . . . Robots Corrupted . | . . . Combat Hostiles . | . . . Parts Fried . | . . . Impact Corruptions . | . . . Robots Melted . | . . . Combat Hostiles . | . . . Parts Melted . | . . . Heat Transferred 481 | . 481 . Parts Sabotaged . | . . . Parts Stolen . | . . . Parts Stripped . | . . . Power Chain Reactions . | . . . Missiles Intercepted . | . . . Alert | -11 -10 -9 ------- Run | Scr Mat Mat Peak Influence 172 | . 172 117 Initial 72 | . . 72 Average 63 | . 67 86 Maximum Alert Level . | . . . Low Security (%) 100 | 100 100 100 Level 1 . | . . . Level 2 . | . . . Level 3 . | . . . Level 4 . | . . . Level 5 . | . . . High Security . | . . . Max Security . | . . . Squads Dispatched 1 | . 1 . Investigation . | . . . Extermination . | . . . Reinforcement 1 | . 1 . Assault . | . . . Garrison . | . . . Intercept . | . . . Construction Impeded . | . . . Haulers Reinforced . | . . . Stealth | -11 -10 -9 --------- Run | Scr Mat Mat Distress Signals 2 | . 2 . Communications Jammed . | . . . Distress Signals . | . . . Times Spotted 22 | . 12 10 Peak Tracking Total 10 | . 3 10 Tactical Retreats 3 | . 3 . Traps | -11 -10 -9 ------- Run | Scr Mat Mat Traps Triggered . | . . . Indirectly . | . . . Trap Hack Attempts . | . . . Triggered . | . . . Disarmed . | . . . Reprogrammed . | . . . Reused . | . . . Traps Extracted . | . . . Installed . | . . . Triggered . | . . . Machines | -11 -10 -9 ---------- Run | Scr Mat Mat Machines Disabled . | . . . Max in Single Turn . | . . . Machines Sabotaged . | . . . Garrisons Compromised . | . . . Overloaded Fab Kills . | . . . Fab Network Shutdowns . | . . . Hacking | -11 -10 -9 --------- Run | Scr Mat Mat Machines Accessed 3 | . 3 . Terminals 3 | . 3 . Fabricators . | . . . Repair Stations . | . . . Recycling Units . | . . . Scanalyzers . | . . . Garrison Access . | . . . Total Hacks 9 | . 9 . Successful 4 | . 4 . Failed 5 | . 5 . Catastrophic . | . . . Database Lockouts . | . . . Manual . | . . . Terminals 9 | . 9 . Fabricators . | . . . Repair Stations . | . . . Recycling Units . | . . . Scanalyzers . | . . . Garrison Access . | . . . Terminal Hacks 4 | . 4 . Prototype ID Bank 1 | . 1 . Locate Traps 2 | . 2 . Investigation Status 1 | . 1 . Fabricator Hacks . | . . . Repair Station Hacks . | . . . Recycling Unit Hacks . | . . . Scanalyzer . | . . . Garrison Access Hacks . | . . . Unauthorized Hacks . | . . . Terminals . | . . . Fabricators . | . . . Repair Stations . | . . . Recycling Units . | . . . Scanalyzers . | . . . Garrison Access . | . . . Data Cores Recovered . | . . . Used . | . . . Hacking Detections 3 | . 3 . Full Trace Events . | . . . Feedback Events . | . . . Feedback Blocked . | . . . Robot Schematics Acquired . | . . . Robots Built . | . . . Matter . | . . . Time . | . . . Total Robot Build Rating . | . . . Part Schematics Acquired . | . . . Parts Built . | . . . Matter . | . . . Time . | . . . Total Part Build Rating . | . . . Parts Repaired . | . . . Time . | . . . Parts Recycled . | . . . Recycled Matter . | . . . Retrieved Matter . | . . . Retrieved Components . | . . . Parts Scanalyzed . | . . . Part Schematics Acquired . | . . . Parts Damaged . | . . . Bothacking | -11 -10 -9 ------------ Run | Scr Mat Mat Used RIF Installer . | . . . Robots Hacked . | . . . Non-combat . | . . . Combat . | . . . Robot Hacks Applied . | . . . Relay Couplers Released . | . . . Robots Rewired . | . . . Allies Hacked . | . . . Hacks Repelled . | . . . Allies | -11 -10 -9 -------- Run | Scr Mat Mat Total Allies . | . . . Largest Group . | . . . Highest-Rated Group . | . . . Highest-Rated Ally . | . . . Total Orders . | . . . Ally Attacks . | . . . Total Damage . | . . . Kills . | . . . Allies Corrupted . | . . . Allies Melted . | . . . Intel | -11 -10 -9 ------- Run | Scr Mat Mat Robot Analysis Total . | . . . Derelict Logs Recovered . | . . . Drone Launches . | . . . Drone Recoveries . | . . . Exploration | -11 -10 -9 ------------- Run | Scr Mat Mat Turns Passed 447 | 59 267 121 Spaces Moved 261 | 38 135 88 Core 16 | 14 2 . Treads 125 | 24 101 . Legs . | . . . Wheels . | . . . Hover . | . . . Flight 120 | . 32 88 Fastest Speed 31 | 50 37 31 Average Speed 96 | 119 130 32 Slowest Speed 160 | 160 160 34 Overloaded Moves . | . . . Propulsion Burnouts . | . . . Robots Hopped . | . . . Cave-ins Triggered . | . . . Exploration Rate (%) 15 | 3 31 13 Regions Visited 2 Branch Regions . Pre-discovered Areas . | . . . Known Exits Taken . | . . . Unknown Exits Taken 2 | 1 1 . Scrap Searched . | . . . Spaces Dug . | . . . Terrain Destroyed . | . . . Melee . | . . . Projectile . | . . . AOE . | . . . Terrain Rammed . | . . . Walls Destroyed . | . . . Machines Disabled . | . . . Actions | -11 -10 -9 --------- Run | Scr Mat Mat Total 419 | 52 185 182 Wait 81 | 3 . 78 Move 259 | 37 134 88 Hop . | . . . Pick Up 21 | 6 12 3 Fast Attach 4 | . 4 . Attach 14 | 6 2 6 Detach 2 | . . 2 Swap 5 | . 4 1 Drop 13 | . 9 4 Fire 20 | . 20 . Melee . | . . . Ram . | . . . Kick . | . . . Crush . | . . . Escape Stasis . | . . . Rewire . | . . . Trap . | . . . Miscellaneous . | . . . Route ------- -11/Scrapyard -10/Materials -9/Materials History --------- Turn | Location | Event 5 | -11/Scrapyard | Discovered new exit (range 15) 60 | -11/Scrapyard | Entered Materials 323 | -10/Materials | Discovered new exit (range 11) 327 | -10/Materials | Entered another Materials area 327 | -9/Materials | Evolved 2 slots: Propulsion x2 361 | -9/Materials | Build established: Mutant 448 | -9/Materials | Self-destructed Last Messages --------------- 00314_ R-06 Scavenger collects Hover Unit. 00315_ Dropped Particle Gun. 00316_ Acquired Med. Laser. 00317_ K-01 Serf collects debris. 00318_ R-06 Scavenger collects Hover Unit. 00320_ K-01 Serf collects debris. 00323_ EXIT=FOUND 00324_ Connecting with Terminal... PARAMETERS=PROPULSION_2 LOCATION=UNKNOWN GOAL=ESCAPE 00331_ Dropped VTOL Module. 00333_ Acquired VTOL Module. 00339_ Acquired Shield Generator. 00340_ Discarded Imp. Targeting Computer. 00407_ Dropped Med. Laser. 00408_ Dropped Particle Gun. 00441_ K-01 Serf cleans the Terminal. 00442_ Acquired Imp. Ion Engine. 00444_ K-01 Serf cleans the Terminal. Map ----- +----------------------------------------------------+ | ?????????????????????????????????????????????????? | | ?????????????????????????????????????????????????? | | ?????????????????????????????????????????????????? | | ?????????????????????????????????????????????????? | | ?????????????????????????????????????????????????? | | ?????????????????????????????????????????????????? | | ?????????????????????????????????????????????????? | | ?????????????????????????????????????????????????? | | ?????????????????????????????????????????????????? | | ?????????????????????????????????????????????????? | | ?????????????????????????????????????????????????? | | ?????????????????????????????????????????????????? | | ?????????????????????? ??????????????????????????? | | ?????????????????????? ??????????????????????????? | | ?????????????????????? ??????????????????????????? | | ?????????????????????? ??????????????????????????? | | ?????????????????????? ??????????????????????????? | | ?????????????????????? #?????????????????????????? | | ?????????????????????? #?????????????????????????? | | ?????????????????????# ########??????????????????? | | ?????????????????????# # #??????????????????? | | ?????????????????????# # "" #??????????????????? | | ???????????????????### # """ #??????????????????? | | ???????????????????# # S" #??????????????????? | | ???????????????????# # #??????????????????? | | ???????????????????# # @[|! #??????????????????? | | ?????????########### + [!! #??????????????????? | | ?????????# """ # # |!! #??????????????????? | | ?????????# """ # # Y#?????????????????? | | ?????????# """ # # """ ##?????????????????? | | ?????????# # # """ #??????????????????? | | ?????????#" # # """ #??????????????????? | | ?????????#T # # #??????????????????? | | ?????????#" + ########## ??????????????? | | ?????????# # ?????????????? | | ?################### ?????????????? | | ?# # #### ?????????????? | | ?# """ # ########## ??????????????? | | ?# """ + #?????????????????????????? | | ?# """ # #?????????????????????????? | | ?# # ########?????????????????????????? | | ?# """ ## ##????????????????????????????????? | | ?# """ ## #?????????????????????????????????? | | ?# """ =## #?????????????????????????????????? | | ?# ## #?????????????????????????????????? | | ?########### #?????????????????????????????????? | | ???????????# #?????????????????????????????????? | | ???????????# #?????????????????????????????????? | | ???????????# #?????????????????????????????????? | | ???????????# #?????????????????????????????????? | +----------------------------------------------------+ Best States ------------- Heat Dissipation 28 Energy Generation 10 Energy Capacity 250 Matter Stores 300 Matter Capacity 300 Sight Range 16 Terrain Scan Density 10 Evasion (%) 63 Targeting Accuracy 12 Recoil Reduction 2 Item Schematics ----------------- None Robot Schematics ------------------ None Fabricated ------------ Nothing Alien Tech Used ----------------- None Achievements -------------- None Challenges ------------ None Game ------ Seed IntegratedIntegratedSteel Manual? 0 Play Time 00:10:09 Cumulative 9.5 hours Start 2021.11.27 @ 14:10:52 End 2021.11.27 @ 14:18:17 Sessions 1 Manual Loads 0 Difficulty Rogue Special Mode None Game No. 16 Rogue 16 Adventurer 0 Explorer 0 Win Type - Total 0 Types 0/0/0/0/0/0/0/0/0 Lore% 7 Gallery% 16 Achievement% 12 Wizard Run 0 Options --------- ASCII 0 Keyboard 0 Movement Mouse Keybinds 0 Fullscreen 2 Font 24/Smallcaps Map View 76x50 Tactical HUD 1 Map Filters NONE Filters NONE Steam 1 RUN: 49a0c592-c710-4d55-8026-1a705d4622c6